Cogmind - Beta 14 @@@ ROGUE MODE // 2024.08.10 @ 21:14:11 Player: Calasmeer Result: Destroyed by S-10 Pest with Light Assault Rifle Performance ------------- Evolutions (0) 0 Regions Visited (2) 400 Robots Destroyed (23) 115 Value Destroyed (556) 556 Prototype IDs (1) 20 Alien Tech Used (0) 0 Bonus (0) 0 TOTAL SCORE: 1091 Bonus ------- None Cogmind --------- Core Integrity 0/250 Matter 300/300 Energy 100/100 System Corruption 1% Temperature Cool (10) Movement Walking (190) Ox1 Location -10/Subcaves Parts ------- > --- POWER (1) -------- (None) > --- PROPULSION (2) --- Carbon-fiber Leg Myomer Leg > --- UTILITY (2) ------ High-capacity Storage Unit Gun Armor > --- WEAPON (2+2) ----- Beamcaster > --- INVENTORY (20) --- Light Angular Momentum Engine Neutrino Core Armored Wheel Armored Wheel Subdweller Monowheel Disposable Heat Sink Medium Storage Unit Subdweller Optics Terrain Scan Processor Light Armor Plating Light Armor Plating Scrap Shield Medium Laser Subdweller Machine Gun Subdweller Machine Gun Peak State ------------ > --- POWER ------------ Ion Engine > --- PROPULSION ------- Carbon-fiber Leg Myomer Leg > --- UTILITY ---------- High-capacity Storage Unit Gun Armor > --- WEAPON ----------- Beamcaster Light Assault Rifle > --- INVENTORY -------- Light Angular Momentum Engine Neutrino Core Armored Wheel Armored Wheel Subdweller Monowheel Disposable Heat Sink Medium Storage Unit Subdweller Optics Terrain Scan Processor Light Armor Plating Light Armor Plating Scrap Shield Medium Laser Subdweller Machine Gun Subdweller Machine Gun [Rating: 30] Favorites ----------- Power Ion Engine Engine Ion Engine Propulsion Wheel Leg Myomer Leg Wheel Wheel Utility Light Armor Plating Storage Small Storage Unit Protection Light Armor Plating Weapon Light Assault Rifle Energy Gun Medium Laser Ballistic Gun Light Assault Rifle Launcher Grenade Launcher Special Weapon Flamer Build | -11 -10 -10 ------- Run | Yrd Mat Sub Slots Evolved . | . . . Power . | . . . Propulsion . | . . . Utility . | . . . Weapon . | . . . Parts Attached 34 | 6 18 10 Power 4 | 1 3 . Engine 4 | 1 3 . Core . | . . . Reactor . | . . . Propulsion 9 | 2 5 2 Treads . | . . . Leg 2 | . . 2 Wheel 7 | 2 5 . Hover . | . . . Flight . | . . . Utility 12 | 1 9 2 Device . | . . . Storage 8 | 1 6 1 Processor . | . . . Hackware . | . . . Protection 4 | . 3 1 Artifact . | . . . Weapon 9 | 2 1 6 Energy Gun 3 | 1 . 2 Energy Cannon . | . . . Ballistic Gun 3 | 1 . 2 Ballistic Cannon . | . . . Launcher 2 | . 1 1 Special Weapon 1 | . . 1 Impact Weapon . | . . . Slashing Weapon . | . . . Piercing Weapon . | . . . Special Melee Weapon . | . . . Unidentified Prototypes 1 | . . 1 Parts Lost 5 | . 2 3 Power 2 | . 1 1 Propulsion 1 | . 1 . Utility . | . . . Weapon 2 | . . 2 Highest Loss Streak 2 | . 1 2 To Critical Strikes . | . . . Average Slot Usage (%) 97 | . 98 95 Engine 13 | . 13 13 Leg 6 | . . 21 Wheel 20 | . 27 5 Storage 13 | . 14 13 Protection 12 | . 12 13 Energy Gun 11 | . 14 7 Ballistic Gun 11 | . 11 11 Launcher 4 | . 2 7 Peak Build Rating 30 | 6 9 30 Average Rating 11 | 3 7 19 On Entrance 5 | . 6 9 Naked Turns . | . . . Heaviest Build 89 | 11 89 55 Greatest Support 40 | 26 26 40 Greatest Overweight (x) 4 | . 4 2 Average Overweight (x) . | . . . Largest Inventory Capacity 25 | 8 25 20 Average Capacity 11 | 6 8 18 Most Carried 16 | 3 9 16 Average Carried 8 | 1 6 13 Final Capacity 20 | 8 10 20 Final Carried 16 | 2 8 16 Class Distribution -------------------- 100% | Mutant Dominant Class ---------------- Mutant | -10/Materials Mutant | -10/Subcaves Resources | -11 -10 -10 ----------- Run | Yrd Mat Sub Matter Collected 704 | 83 449 172 Remotely . | . . . Salvage Created 626 | 17 483 126 Parts 38 | 2 29 7 Haulers Intercepted . | . . . Recyclers Shooed . | . . . Parts Field Recycled . | . . . Retrieved Matter . | . . . Parts Self-Destructed 6 | . . 6 Prevented . | . . . Kills | -11 -10 -10 ------- Run | Yrd Mat Sub Combat Hostiles Destroyed 16 | . 11 5 Guns 13 | . 9 4 AOE 3 | . 2 1 Classes Destroyed 6 | 1 4 1 Worker 3 | . 3 . Tunneler 1 | 1 . . Watcher 3 | . 3 . Swarmer 4 | . 3 1 Grunt 8 | . 8 . Subdweller 4 | . . 4 Best Kill Streak 3 | 1 3 3 Combat Bots Only 3 | . 3 3 Max Kills in Single Turn 1 | 1 1 1 Gunslinging . | . . . Exploded 1 | . 1 1 Melee . | . . . Uniques/NPCs Destroyed . | . . . Combat | -11 -10 -10 -------- Run | Yrd Mat Sub Hostile Shots Fired 89 | . 50 39 Missed 25 | . 16 9 Damage Taken 1079 | . 517 562 Core 256 | . 126 130 Absorbed by Shields . | . . . Regen/Repaired (Parts) 65 | . 65 . Core Remaining (%) 100 | 100 . . Volleys Fired 96 | 9 65 22 Largest 2 | 1 2 2 Hottest 95 | 50 80 95 Shots Fired 173 | 9 125 39 Gun 165 | 9 121 35 Cannon . | . . . Launcher 8 | . 4 4 Special . | . . . Kinetic 81 | . 61 20 Thermal 84 | 9 60 15 Explosive 8 | . 4 4 Electromagnetic . | . . . Robot Hit Streak 11 | 5 7 11 Robot Miss Streak 4 | 2 4 1 Penetration Max . | . . . Secondary Targets 1 | . . 1 Max Gunslinging Chain 1 | . . 1 Shots Hit Robots 102 | 7 71 24 Core Hits 44 | 1 29 14 Critical Kills . | . . . Critical Parts Destroyed . | . . . Critical Strikes 4 | 1 1 2 Burn 4 | 1 1 2 Melee Attacks . | . . . Impact . | . . . Slashing . | . . . Piercing . | . . . Sneak Attacks . | . . . Combat Hostiles . | . . . Follow-up Attacks . | . . . Damage Inflicted 1444 | 74 847 523 Guns 1100 | 74 697 329 Cannons . | . . . Explosions 338 | . 144 194 Melee . | . . . Ramming 6 | . 6 . Kinetic 443 | . 323 120 Thermal 657 | 74 374 209 Explosive 338 | . 144 194 Electromagnetic . | . . . Impact . | . . . Slashing . | . . . Piercing . | . . . Highest Corruption 1 | . 1 1 Average Corruption 1 | . 1 1 Corruption Purged . | . . . Corruption Blocked . | . . . Effects 15 | . 9 6 Message Errors 3 | . 1 2 Matter Fused 2 | . . 2 Heat Flow Errors 2 | . 2 . Data Loss (minor) 4 | . 3 1 Data Loss (major) 2 | . 2 . Alerts 2 | . 1 1 Overload Shots . | . . . Overflow Damage . | . . . Projectiles . | . . . Explosions . | . . . Melee . | . . . Knockbacks . | . . . Impact . | . . . Kinetic . | . . . Secondary . | . . . Self-Inflicted Damage 73 | . 28 45 Shots 5 | . 2 3 Rammed 1 | . 1 . Targets Rammed 1 | . 1 . Kicked . | . . . Crushed . | . . . Highest Temperature 303 | 25 303 40 Average Temperature 76 | 25 82 14 Received Heat Transfer 270 | . 213 57 Effects 2 | . 2 . Interference 2 | . 2 . Siege Activations . | . . . Robots Corrupted . | . . . Combat Hostiles . | . . . Parts Fried . | . . . Impact Corruptions . | . . . Robots Melted . | . . . Combat Hostiles . | . . . Parts Melted 3 | 2 1 . Heat Transferred 2072 | 296 1184 592 Parts Sabotaged . | . . . Parts Stolen . | . . . Parts Stripped . | . . . Power Chain Reactions . | . . . Alert | -11 -10 -10 ------- Run | Yrd Mat Sub Peak Influence 217 | 5 217 . Initial 3 | . 3 . Average 94 | 2 100 . Maximum Alert Level 1 | . 1 . Low Security (%) 89 | 100 89 . Level 1 10 | . 10 . Level 2 . | . . . Level 3 . | . . . Level 4 . | . . . Level 5 . | . . . High Security . | . . . Max Security . | . . . Squads Dispatched 3 | . 3 . Investigation 2 | . 2 . Extermination . | . . . Reinforcement 1 | . 1 . Assault . | . . . Garrison . | . . . Intercept . | . . . Searches Triggered . | . . . Construction Impeded . | . . . Haulers Reinforced . | . . . Active Scanning Responses . | . . . Cargo Convoy Interrupts . | . . . Stealth | -11 -10 -10 --------- Run | Yrd Mat Sub Distress Signals 2 | . 2 . Communications Jammed . | . . . Distress Signals . | . . . Times Spotted 40 | . 23 17 Peak Tracking Total 8 | . 3 8 Tactical Retreats 3 | . 2 1 Traps | -11 -10 -10 ------- Run | Yrd Mat Sub Traps Triggered 2 | . 2 . Indirectly . | . . . Trap Hack Attempts . | . . . Triggered . | . . . Disarmed . | . . . Reprogrammed . | . . . Reused . | . . . Traps Extracted . | . . . Installed . | . . . Triggered . | . . . Machines | -11 -10 -10 ---------- Run | Yrd Mat Sub Machines Disabled . | . . . Max in Single Turn . | . . . Machines Repaired . | . . . Machines Dismantled . | . . . Machines Sabotaged . | . . . Overloaded Fab Kills . | . . . Hacking | -11 -10 -10 --------- Run | Yrd Mat Sub Machines Accessed 6 | . 6 . Terminals 5 | . 5 . Fabricators . | . . . Repair Stations 1 | . 1 . Recycling Units . | . . . Scanalyzers . | . . . Garrison Access . | . . . Total Hacks 21 | . 21 . Successful 11 | . 11 . Failed 10 | . 10 . Catastrophic 2 | . 2 . Database Lockouts . | . . . Manual 18 | . 18 . Terminals 19 | . 19 . Fabricators . | . . . Repair Stations 2 | . 2 . Recycling Units . | . . . Scanalyzers . | . . . Garrison Access . | . . . Terminal Hacks 6 | . 6 . Record 1 | . 1 . Level Access Points 1 | . 1 . Branch Access Points 1 | . 1 . Emergency Access Points 1 | . 1 . Alert Level 2 | . 2 . Fabricator Hacks . | . . . Repair Station Hacks 2 | . 2 . Scan Component 1 | . 1 . Repair 1 | . 1 . Recycling Unit Hacks . | . . . Scanalyzer . | . . . Garrison Access Hacks . | . . . Unauthorized Hacks 3 | . 3 . Terminals 3 | . 3 . Botnet 3 | . 3 . Fabricators . | . . . Repair Stations . | . . . Recycling Units . | . . . Scanalyzers . | . . . Garrison Access . | . . . Data Cores Recovered . | . . . Used . | . . . Hacking Detections 5 | . 5 . Full Trace Events 4 | . 4 . Feedback Events . | . . . Feedback Blocked . | . . . Robot Schematics Acquired . | . . . Robots Built . | . . . Authchips . | . . . Time . | . . . Total Robot Build Rating . | . . . Part Schematics Acquired . | . . . Parts Built . | . . . Authchips . | . . . Time . | . . . Total Part Build Rating . | . . . Parts Repaired 1 | . 1 . Time 26 | . 26 . Parts Recycled . | . . . Recycled Matter . | . . . Retrieved Matter . | . . . Retrieved Components . | . . . Parts Scanalyzed . | . . . Part Schematics Acquired . | . . . Parts Damaged . | . . . Bothacking | -11 -10 -10 ------------ Run | Yrd Mat Sub Used RIF Installer . | . . . Robots Hacked . | . . . Non-combat . | . . . Combat . | . . . Robot Hacks Applied . | . . . Relay Couplers Released . | . . . Fabnet Peak Effective % . | . . . Robots Rewired . | . . . Allies Hacked . | . . . Hacks Repelled . | . . . Allies | -11 -10 -10 -------- Run | Yrd Mat Sub Total Allies . | . . . Largest Group . | . . . Highest-Rated Group . | . . . Highest-Rated Ally . | . . . Total Orders . | . . . Ally Attacks . | . . . Total Damage . | . . . Kills . | . . . Allies Corrupted . | . . . Allies Melted . | . . . Intel | -11 -10 -10 ------- Run | Yrd Mat Sub Robot Analysis Total . | . . . Derelict Logs Recovered 1 | . . 1 Drone Launches . | . . . Drone Recoveries . | . . . Exploration | -11 -10 -10 ------------- Run | Yrd Mat Sub Turns Passed 1817 | 75 1198 544 Spaces Moved 1417 | 48 1090 279 Core 15 | 15 . . Treads . | . . . Legs 195 | . . 195 Wheels 1207 | 33 1090 84 Hover . | . . . Flight . | . . . Fastest Speed 50 | 50 80 90 Average Speed 99 | 77 85 161 Slowest Speed 260 | 90 140 260 Overloaded Moves . | . . . Propulsion Burnouts . | . . . Robots Hopped . | . . . Cave-ins Triggered . | . . . Exploration Rate (%) 41 | 4 96 24 Regions Visited 2 Branch Regions 1 Pre-discovered Areas . | . . . Known Exits Taken . | . . . Unknown Exits Taken 2 | 1 1 . Scrap Searched . | . . . Spaces Dug 14 | . 14 . Terrain Destroyed 51 | . 29 22 Melee . | . . . Projectile 1 | . . 1 AOE 50 | . 29 21 Terrain Rammed . | . . . Walls Destroyed . | . . . Machines Disabled . | . . . Actions | -11 -10 -10 --------- Run | Yrd Mat Sub Total 1661 | 78 1246 337 Wait 47 | . 45 2 Move 1415 | 47 1089 279 Hop . | . . . Pick Up 46 | 12 19 15 Fast Attach 2 | . 2 . Attach 11 | 6 4 1 Detach . | . . . Swap 21 | . 12 9 Drop 21 | 4 9 8 Fire 96 | 9 65 22 Melee . | . . . Ram 1 | . 1 . Kick . | . . . Crush . | . . . Escape Stasis . | . . . Rewire 1 | . . 1 Trap . | . . . Miscellaneous . | . . . Route ------- -11/Scrapyard -10/Materials (discovered 5 exits: *Mat x3 / *Min / [*Sub]) -10/Subcaves History --------- Turn | Location | Event 52 | -11/Scrapyard | Discovered new exit (range 15) 76 | -11/Scrapyard | Entered Materials 300 | -10/Materials | Build established: Mutant 606 | -10/Materials | Discovered new exit (range 15) 733 | -10/Materials | Core integrity fell below 50% 811 | -10/Materials | Discovered new exit (range 7) 923 | -10/Materials | Discovered new exit (range 9) 958 | -10/Materials | Repaired Lgt. Armor Plating 979 | -10/Materials | Discovered new exit (range 4) 988 | -10/Materials | Identified exit to Mines 1159 | -10/Materials | Discovered new exit (range 13) 1211 | -10/Materials | Identified exit to Materials 1274 | -10/Materials | Entered Subcaves 1289 | -10/Subcaves | Learned Materials terminal intel 1337 | -10/Subcaves | Ambushed by swarm of Subdwellers 1678 | -10/Subcaves | A Subdweller sparked back to life 1678 | -10/Subcaves | A Subdweller sparked back to life 1678 | -10/Subcaves | A Subdweller sparked back to life 1702 | -10/Subcaves | Core integrity fell below 20% 1719 | -10/Subcaves | Found Prototype Protection 1720 | -10/Subcaves | Identified Gun Armor 1722 | -10/Subcaves | Attached Gun Armor, gained temporary slots: Weapon x2 1818 | -10/Subcaves | Destroyed by S-10 Pest with Light Assault Rifle Last Messages --------------- 01706_ EN-FGD(R) destroyed. 01706_ Switching to secondary target: GB-ELQ(R). 01709_ GB-ELQ(R) suffers critical hit (Burn). 01715_ GB-ELQ(R) destroyed. 01719_ System corrupted: Matter fused (-7). 01719_ Acquired Prototype Protection. 01720_ The unstable cave ceiling collapses. 01720_ Identified Gun Armor. 01722_ Core temporarily expanded with Weapon slot. 01722_ Acquired 60 matter. 01724_ Acquired 4 matter. 01761_ System corrupted: IFF burst signal emitted. 01797_ GH-47X(z): "She is not going to be happy we haven't found any suitable candidates yet." 01814_ Lgt. Assault Rifle destroyed. 01814_ S-10 Pest springs to life. 01815_ S-10 Pest destroyed. 01817_ Ion Engine destroyed. Map ----- +----------------------------------------------------+ | ?????????????????????????????????????????????????? | | ?????????????????????????????????????????????????? | | ?????????????????????????????????????????????????? | | ?????????????????????????????????????????????????? | | ?????????????????????????????????????????????????? | | ?????????????????????????????????????????????????? | | ?????????????????????????????????????????????????? | | ?????????????????????????????????????????????????? | | ?????????????????????????????????????????????????? | | ?????????????????????????????????????????????????? | | ?????????????????????????????????????????????????? | | ?????????????????????????????????????????????????? | | ?????????????????????????????????????????????????? | | ?????????????????# ??????????????????????????????? | | ?????????????????# ??????????????????????????????? | | ?????????????????# ??????? g????????????????????? | | ?????????????????# ###?### #????????????????????? | | ??????????????#### ## " ##???####????????????? | | ??????????????# """ #?? """????????????? | | ??????????????# "" ## "#???????????? | | ??????????????# " # "????????????? | | ??????????????# %s t""????????????? | | ??????????????# s = ??????????????? | | ??###???????????? s ?????????????????? | | ?## #??????????????# #???????????????????? | | ?# #??????????????# @ #???????????????????? | | ?# ##????????????#### ##??????????????????? | | ??# ##??????????????## ####???????????????? | | ???# #????####???????# #???????????????? | | ????# ##?### ######### ##???????????????? | | ##??# ### ## ##????????????????? | | #### ## ##????????????????? | | # ###??????????????? | | #### #??????????????? | | # ### #### ##### ##??????????????? | | [ ##### %# ##??#######????##???????????????? | | %& ####%"# ####???????????????????????????????? | | &&! # % #?????????????????????????????????? | | &## ##" ##?????????????????????????????????? | | ## !% " ##??????????????????????????????????? | | ### " "" #???????????????????????????????????? | | ?## # ##???????????????????????????????????? | | #??##########????????????????????????????????????? | | ?????????????????????????????????????????????????? | | ?????????????????????????????????????????????????? | | ?????????????????????????????????????????????????? | | ?????????????????????????????????????????????????? | | ?????????????????????????????????????????????????? | | ?????????????????????????????????????????????????? | | ?????????????????????????????????####????????????? | +----------------------------------------------------+ Best States ------------- Heat Dissipation 25 Energy Generation 10 Energy Capacity 350 Matter Stores 300 Matter Capacity 300 Sight Range 16 Terrain Scan Density 10 Armor Coverage 150 Evasion (%) 44 Item Schematics ----------------- None Robot Schematics ------------------ None Fabricated ------------ Nothing Alien Tech Used ----------------- None Achievements -------------- None Challenges ------------ None Game ------ Seed GreatCombatBlaster Manual? 0 Play Time 00:37:26 Cumulative 1.5 hours Start 2024.08.10 @ 20:17:35 End 2024.08.10 @ 21:14:11 Sessions 1 Manual Loads 0 Difficulty Rogue Special Mode None Game No. 4 Rogue 3 Adventurer 0 Explorer 1 Win Type - Total 0 Types 0/0/0/0/0/0/0/0/0 Lore% 6 Gallery% 7 Achievement% 8 Wizard Run 0 Options --------- Layout 2 ASCII 0 Keyboard 0 Movement Mouse Keybinds 0 Fullscreen 1 Font 32/Smallcaps Map View 50x44 Zoom Use 0% Tactical HUD 1 Map Filters NONE Filters NONE Steam 1 RUN: 93596475-75cd-456e-931d-d70e257d707d